bitfinex/quotes_BTCUSD_20230109
["timestamp","ask_amount","ask_price","bid_price","bid_amount"]
[1673223600783,1.6728686,17140.0,17139.0,0.14690088]
[1673223601021,2.2562986,17140.0,17139.0,0.14690088]
[1673223601516,1.6678576,17140.0,17139.0,0.54690088]
[1673223601772,1.6678576,17140.0,17139.0,0.14690088]
[1673223603037,1.91788567,17140.0,17139.0,0.14690088]
[1673223603316,1.85096181,17140.0,17139.0,0.14690088]
[1673223603524,1.67725355,17140.0,17139.0,0.14690088]
[1673223604079,1.67725355,17140.0,17139.0,0.00790088]
[1673223604308,1.70525355,17140.0,17139.0,0.00590088]
[1673223604824,1.70525355,17140.0,17139.0,0.00690088]
[1673223605819,2.55627403,17140.0,17139.0,0.00690088]
[1673223606070,2.55631271,17140.0,17139.0,0.00690088]
[1673223606324,2.55639734,17140.0,17139.0,0.00690088]
[1673223606821,3.07411449,17140.0,17139.0,0.00690088]
[1673223607075,2.71941812,17140.0,17139.0,0.00690088]
[1673223607336,2.13598812,17140.0,17139.0,0.57087508]
[1673223607592,1.95268788,17140.0,17139.0,0.57087508]
[1673223607839,0.81445697,17140.0,17139.0,1.15433908]
[1673223608085,0.81445697,17140.0,17139.0,1.51989108]
[1673223608358,0.63967656,17140.0,17139.0,1.51989108]
[1673223608604,0.63967656,17140.0,17139.0,2.50335508]
[1673223611384,0.63967656,17140.0,17139.0,2.10335508]
[1673223611634,0.63967656,17140.0,17139.0,2.10315508]
[1673223612125,0.63967656,17140.0,17139.0,1.73760308]
[1673223612126,0.81445697,17140.0,17139.0,1.73760308]
[1673223612384,0.63967656,17140.0,17139.0,1.73760308]
[1673223612876,0.81445697,17140.0,17139.0,2.10315508]
[1673223613127,1.6904688,17140.0,17139.0,2.10315508]
[1673223613388,0.81445697,17140.0,17139.0,2.10315508]
[1673223613636,0.63967656,17140.0,17139.0,2.10315508]
[1673223615440,0.61167656,17140.0,17139.0,2.09915508]
[1673223616237,0.61667656,17140.0,17139.0,2.09915508]
[1673223616471,0.61167656,17140.0,17139.0,2.09915508]
[1673223616972,0.61267656,17140.0,17139.0,2.23915508]
[1673223617761,1.66353073,17140.0,17139.0,2.23915508]
[1673223618038,1.92570968,17140.0,17139.0,2.23915508]
[1673223619032,1.92570968,17140.0,17139.0,1.87360308]
[1673223620029,1.92570968,17140.0,17139.0,1.29013908]
[1673223620554,2.45768719,17140.0,17139.0,0.14270088]
[1673223620805,3.61123867,17140.0,17139.0,0.14270088]
[1673223621049,4.13425902,17140.0,17139.0,0.14270088]
[1673223622048,3.61123867,17140.0,17139.0,0.14270088]
[1673223622304,3.19601778,17140.0,17139.0,0.14270088]
[1673223622553,3.71903813,17140.0,17139.0,0.14270088]
[1673223623042,3.83223813,17140.0,17139.0,0.14270088]
[1673223624809,3.89264778,17140.0,17139.0,0.14270088]
[1673223626587,4.41566813,17140.0,17139.0,0.14270088]
[1673223626824,3.89264778,17140.0,17139.0,0.14270088]
[1673223627074,4.32948456,17140.0,17139.0,0.14270088]
[1673223627342,4.36948456,17140.0,17139.0,0.14270088]
[1673223627595,4.71894243,17140.0,17139.0,0.14270088]
[1673223629380,4.28210565,17140.0,17139.0,0.14270088]
[1673223630162,4.28204565,17140.0,17139.0,0.14270088]
[1673223630412,4.71883549,17140.0,17139.0,0.14270088]
[1673223630935,4.9550704,17140.0,17139.0,0.14270088]
[1673223632198,4.60563549,17140.0,17139.0,0.14270088]
[1673223633578,4.07365798,17140.0,17139.0,0.14270088]
[1673223633765,3.66495332,17140.0,17139.0,0.14270088]
[1673223634023,3.83966819,17140.0,17139.0,0.14270088]
[1673223634267,4.42309819,17140.0,17139.0,0.14270088]
[1673223634519,4.42309819,17140.0,17139.0,0.44270088]
[1673223634520,4.07367,17140.0,17139.0,0.44270088]
[1673223634767,3.66496121,17140.0,17139.0,0.14270088]
[1673223635263,3.08153121,17140.0,17139.0,0.14270088]
[1673223636019,3.08153121,17140.0,17139.0,0.44270088]
[1673223636513,2.49810121,17140.0,17139.0,0.14270088]
[1673223637734,2.48960121,17140.0,17139.0,0.14270088]
[1673223638743,2.66430819,17140.0,17139.0,0.14270088]
[1673223638998,2.92648854,17140.0,17139.0,0.14270088]
[1673223639254,2.31504005,17140.0,17139.0,0.7578625]
[1673223640489,2.31504005,17140.0,17139.0,1.3413265]
[1673223640741,2.31504005,17140.0,17139.0,0.7578625]
[1673223641831,2.31504005,17140.0,17139.0,1.3413265]
[1673223642558,2.31504005,17140.0,17139.0,1.7068785]
[1673223642803,2.31504005,17140.0,17139.0,1.70746177]
[1673223643040,2.31504005,17140.0,17139.0,2.2903425]
[1673223643288,2.31504005,17140.0,17139.0,1.7068785]
[1673223643527,2.4896987,17140.0,17139.0,1.7068785]
[1673223644018,2.4896987,17140.0,17139.0,1.1234145]
[1673223644267,2.4896987,17140.0,17139.0,0.7578625]
[1673223644521,2.66430819,17140.0,17139.0,0.7578625]
[1673223644769,2.31486798,17140.0,17139.0,0.14270088]
[1673223646033,2.89829798,17140.0,17139.0,0.14270088]
[1673223646530,2.31486798,17140.0,17139.0,0.14270088]
[1673223646748,2.65806932,17140.0,17139.0,0.14270088]
[1673223648312,3.48382176,17140.0,17139.0,0.14270088]
[1673223649562,3.8334396,17140.0,17139.0,0.14270088]
[1673223650534,3.48382176,17140.0,17139.0,0.14270088]
[1673223650804,3.83348744,17140.0,17139.0,0.14270088]
[1673223651044,3.48382176,17140.0,17139.0,0.14270088]
[1673223652794,3.04703192,17140.0,17139.0,0.14270088]
[1673223654297,4.15348227,17140.0,17139.0,0.14270088]
[1673223655041,4.06764149,17140.0,17139.0,0.14270088]
[1673223656328,3.63046192,17140.0,17139.0,0.14270088]
[1673223657597,4.15348227,17140.0,17139.0,0.14270088]
[1673223658601,3.63046192,17140.0,17139.0,0.14270088]
[1673223658813,3.48441634,17140.0,17139.0,0.14270088]
[1673223659102,3.92180188,17140.0,17139.0,0.14270088]
[1673223659657,4.35918925,17140.0,17139.0,0.14270088]
[1673223660668,4.21320454,17140.0,17139.0,0.14270088]
[1673223660917,4.25320454,17140.0,17139.0,0.14270088]
[1673223661158,4.25320454,17140.0,17139.0,0.74550747]
[1673223661403,4.60315279,17140.0,17139.0,0.74550747]
[1673223661652,4.9530975,17140.0,17139.0,0.74550747]
[1673223664909,5.39058974,17140.0,17139.0,0.74550747]
[1673223665904,5.39058974,17140.0,17139.0,0.14270088]
[1673223666152,4.9530975,17140.0,17139.0,0.14270088]
[1673223666650,5.5365275,17140.0,17139.0,0.14270088]
[1673223667160,6.05954785,17140.0,17139.0,0.14259461]
[1673223668406,5.5365275,17140.0,17139.0,0.14259461]
[1673223668653,4.9530975,17140.0,17139.0,0.14259461]
[1673223669655,6.05954785,17140.0,17139.0,0.14259461]
[1673223669871,4.89268785,17140.0,17139.0,0.14259461]
[1673223670146,5.5365275,17140.0,17139.0,0.14259461]
[1673223670367,6.05954785,17140.0,17139.0,0.14259461]
[1673223673906,5.59682857,17140.0,17139.0,0.14259461]
[1673223674159,2.54260949,17140.0,17139.0,0.14259461]
[1673223674445,2.13236371,17140.0,17139.0,0.14259461]
[1673223674662,2.13136371,17140.0,17139.0,0.00259461]
[1673223675143,2.55641306,17140.0,17139.0,0.00259461]
[1673223676901,3.13984306,17140.0,17139.0,0.00259461]
[1673223678138,3.72891698,17140.0,17139.0,0.00259461]
[1673223678388,3.20386763,17140.0,17139.0,0.00259461]
[1673223682629,3.79226553,17140.0,17139.0,0.00259461]
[1673223683914,4.01776553,17140.0,17139.0,0.00259461]
[1673223684163,5.40494691,17140.0,17139.0,0.00259461]
[1673223684419,5.13078539,17140.0,17139.0,0.00259461]
[1673223684670,5.55742947,17140.0,17139.0,0.00259461]
[1673223685475,5.43491278,17140.0,17139.0,0.01359461]
[1673223685979,5.43491278,17140.0,17139.0,0.16526427]
[1673223686230,4.21591278,17140.0,17139.0,0.16526427]
[1673223686539,4.24191278,17140.0,17139.0,0.16526427]
[1673223686799,5.92380493,17140.0,17139.0,0.16526427]
[1673223687038,4.24191278,17140.0,17139.0,0.16526427]
[1673223687575,4.52711278,17140.0,17139.0,0.16526427]
[1673223688166,4.81732991,17140.0,17139.0,0.16526427]
[1673223688444,4.465269,17140.0,17139.0,0.16526427]
[1673223688696,3.87517802,17140.0,17139.0,0.16526427]
[1673223690042,3.34148658,17140.0,17139.0,0.16526427]
[1673223690301,3.17098658,17140.0,17139.0,0.16526427]
[1673223690830,1.41505266,17140.0,17139.0,0.96973535]
[1673223691082,2.01839751,17140.0,17139.0,0.73205746]
[1673223691335,1.93097742,17140.0,17139.0,1.09760946]
[1673223691555,1.49389622,17140.0,17139.0,1.09760946]
[1673223691901,1.49389622,17140.0,17139.0,1.08660946]
[1673223692119,1.64273778,17140.0,17139.0,1.09619273]
[1673223692356,1.64273778,17140.0,17139.0,1.08660946]
[1673223692854,1.65323778,17140.0,17139.0,1.22760946]
[1673223693388,1.46986722,17140.0,17139.0,1.22760946]
[1673223693885,1.29500511,17140.0,17139.0,1.22760946]
[1673223694914,1.46986722,17140.0,17139.0,0.86205746]
[1673223695664,1.64473778,17140.0,17139.0,0.86205746]
[1673223696690,2.81159778,17140.0,17139.0,0.86197945]
[1673223696952,2.22816778,17140.0,17139.0,0.86197945]
[1673223697194,1.64473778,17140.0,17139.0,0.86197945]
[1673223697949,1.64473778,17140.0,17139.0,0.85946285]
[1673223698977,1.64473778,17140.0,17139.0,1.25946285]
[1673223699258,1.46981384,17140.0,17139.0,1.25946285]
[1673223699546,1.46981384,17140.0,17139.0,1.22501485]
[1673223700019,1.46981384,17140.0,17139.0,0.85946285]
[1673223700534,1.29491998,17140.0,17139.0,1.62501485]
[1673223701550,0.34415726,17140.0,17139.0,1.62501485]
[1673223701805,0.34415726,17140.0,17139.0,2.79194285]
[1673223702054,0.34415726,17140.0,17139.0,2.90474285]
[1673223702309,0.34415726,17140.0,17139.0,4.02755093]
[1673223702816,0.34415726,17140.0,17139.0,3.60090685]
[1673223703099,0.34215726,17140.0,17139.0,2.76364285]
[1673223703374,0.51687091,17140.0,17139.0,1.80647885]
[1673223703618,0.51687091,17140.0,17139.0,1.30192685]
[1673223703862,0.51687091,17140.0,17139.0,1.80647885]
[1673223704115,0.51687091,17140.0,17139.0,1.66747885]
[1673223704365,0.51687091,17140.0,17139.0,1.80647885]
[1673223704630,0.51687091,17140.0,17139.0,1.66747885]
[1673223704874,0.51687091,17140.0,17139.0,1.80747885]
[1673223705691,1.65495686,17140.0,17139.0,1.66747885]
[1673223705957,1.65495686,17140.0,17139.0,0.29166966]
[1673223705958,1.82989608,17140.0,17139.0,0.29166966]
[1673223706458,2.00459416,17140.0,17139.0,0.29166966]
[1673223706712,1.65494129,17140.0,17139.0,0.15166966]
[1673223706962,1.65494129,17140.0,17139.0,0.29166966]
[1673223707754,1.82989608,17140.0,17139.0,0.29166966]
[1673223708558,1.82975594,17140.0,17139.0,0.29166966]
[1673223708807,1.82968248,17140.0,17139.0,0.29166966]
[1673223709817,2.40472708,17140.0,17139.0,0.29166966]
[1673223710058,2.98790312,17140.0,17139.0,0.29166966]
[1673223711063,2.93730325,17140.0,17139.0,0.29166966]
[1673223711319,3.28670318,17140.0,17139.0,0.29166966]
[1673223713103,3.87013318,17140.0,17139.0,0.29166966]
[1673223713347,4.02498198,17140.0,17139.0,0.29166966]
[1673223713599,4.98708463,17140.0,17139.0,0.29166966]
[1673223714618,4.46253568,17140.0,17139.0,0.29166966]
[1673223720464,4.98708463,17140.0,17139.0,0.29166966]
[1673223722495,4.40365463,17140.0,17139.0,0.29166966]
[1673223723042,5.91213078,17140.0,17139.0,0.29166966]
[1673223723296,5.97779896,17140.0,17139.0,0.29166966]
[1673223723547,6.03799537,17140.0,17139.0,0.29166966]
[1673223723852,6.36513206,17140.0,17139.0,0.29166966]
[1673223724069,4.99457942,17140.0,17139.0,0.29166966]
[1673223724329,4.99392601,17140.0,17139.0,0.2625027]
[1673223724586,4.70220601,17140.0,17139.0,0.1225027]
[1673223724847,5.89234388,17140.0,17139.0,0.1255027]
[1673223725099,5.88134388,17140.0,17139.0,0.1225027]
[1673223725606,5.89234388,17140.0,17139.0,0.1325027]
[1673223727120,4.93188104,17140.0,17139.0,0.1325027]
[1673223727407,5.45585718,17140.0,17139.0,0.1325027]
[1673223727656,5.51604179,17140.0,17139.0,0.1325027]
[1673223728434,4.86629346,17140.0,17139.0,0.1325027]
[1673223728673,5.39219346,17140.0,17139.0,0.1325027]
[1673223728915,6.38031279,17140.0,17139.0,0.1325027]
[1673223730420,5.39219346,17140.0,17139.0,0.1325027]
[1673223731428,6.38029967,17140.0,17139.0,0.1325027]
[1673223731928,5.98166345,17140.0,17139.0,0.1325027]
[1673223732173,6.38067739,17140.0,17139.0,0.1325027]
[1673223733987,5.98166345,17140.0,17139.0,0.1325027]
[1673223734250,5.68166345,17140.0,17139.0,0.1325027]
[1673223734494,3.97304402,17140.0,17139.0,0.1325027]
[1673223734758,4.49685279,17140.0,17139.0,0.1325027]
[1673223735020,5.14631199,17140.0,17139.0,0.1325027]
[1673223735545,5.44631199,17140.0,17139.0,0.1325027]
[1673223735789,5.84454962,17140.0,17139.0,0.1325027]
[1673223736056,5.44631199,17140.0,17139.0,0.1325027]
[1673223736615,5.14631199,17140.0,17139.0,0.1325027]
[1673223736821,4.5570087,17140.0,17139.0,0.1325027]
[1673223737593,4.8570087,17140.0,17139.0,0.1325027]
[1673223737867,4.6311087,17140.0,17139.0,0.1325027]
[1673223738097,5.22035906,17140.0,17139.0,0.1325027]
[1673223741196,5.22035906,17140.0,17139.0,0.11925244]
[1673223742451,4.69655029,17140.0,17139.0,0.11925244]
[1673223742708,4.69675389,17140.0,17139.0,0.11925244]
[1673223743727,4.39675389,17140.0,17139.0,0.11925244]
[1673223744232,4.69675389,17140.0,17139.0,0.11925244]
[1673223746952,3.46317945,17140.0,17139.0,0.11925244]
[1673223747468,3.69037945,17140.0,17139.0,0.11925244]
[1673223747974,3.75060182,17140.0,17139.0,0.11925244]
[1673223748479,3.69037945,17140.0,17139.0,0.11925244]
[1673223748728,3.75060159,17140.0,17139.0,0.11925244]
[1673223749227,3.69037945,17140.0,17139.0,0.1073272]
[1673223749763,0.10732,17139.0,17132.0,0.018085]
[1673223750033,0.52460466,17134.0,17132.0,0.018085]
[1673223750290,0.63965297,17133.0,17132.0,0.018085]
[1673223750570,1.46787935,17133.0,17132.0,0.018085]
[1673223750822,3.50942044,17133.0,17132.0,0.016085]
[1673223751071,3.02705335,17133.0,17132.0,0.013085]
[1673223751333,3.02705335,17133.0,17132.0,0.01620589]
[1673223751334,3.17061953,17133.0,17132.0,0.01620589]
[1673223751619,2.94419294,17133.0,17132.0,0.013085]
[1673223751897,4.1880634,17133.0,17132.0,0.017085]
[1673223752137,4.0520634,17133.0,17132.0,0.14683623]
[1673223752405,4.3520634,17133.0,17132.0,0.14683623]
[1673223752662,4.41228729,17133.0,17132.0,0.14683623]
[1673223752913,4.72366167,17133.0,17132.0,0.15083623]
[1673223753185,3.24523834,17133.0,17132.0,0.15083623]
[1673223753439,2.13038535,17133.0,17132.0,0.15083623]
[1673223753925,2.11872586,17133.0,17132.0,0.15083623]
[1673223754191,3.01174417,17133.0,17132.0,0.15083623]
[1673223754450,3.31174417,17133.0,17132.0,0.15083623]
[1673223755227,2.64284369,17133.0,17132.0,0.15083623]
[1673223755477,2.11872586,17133.0,17132.0,0.15083623]
[1673223756244,1.9992313,17133.0,17132.0,0.82982804]
[1673223756501,2.17386026,17133.0,17132.0,1.05522804]
[1673223757317,1.2224704,17133.0,17132.0,1.05122804]
[1673223757552,1.2224704,17133.0,17132.0,1.09522804]
[1673223757553,0.008,17133.0,17132.0,1.09522804]
[1673223757807,0.1826609,17133.0,17132.0,1.46054974]
[1673223758061,0.18240597,17133.0,17132.0,1.46275479]
[1673223758316,0.35706857,17133.0,17132.0,1.46275479]
[1673223758567,0.61906951,17133.0,17132.0,1.23514974]
[1673223758817,0.61906951,17133.0,17132.0,0.86959774]
[1673223759073,0.61132444,17133.0,17132.0,0.82559774]
[1673223759346,0.97466404,17133.0,17132.0,0.87059774]
[1673223759631,0.96066404,17133.0,17132.0,0.82559774]
[1673223759862,2.18412275,17133.0,17132.0,0.19183623]
[1673223760125,2.33081084,17133.0,17132.0,0.19183623]
[1673223760395,2.76760003,17133.0,17132.0,0.19183623]
[1673223760645,2.76760003,17133.0,17132.0,0.14683623]
[1673223760646,1.35636117,17133.0,17132.0,0.14683623]
[1673223760979,1.97252775,17133.0,17132.0,0.15183623]
[1673223761216,1.97252775,17133.0,17132.0,0.14683623]
[1673223761217,2.8652138,17133.0,17132.0,0.14683623]
[1673223761476,3.1652138,17133.0,17132.0,0.14683623]
[1673223761966,3.2572138,17133.0,17132.0,0.15183623]
[1673223762771,2.32226762,17133.0,17132.0,0.15183623]
[1673223763030,2.38244439,17133.0,17132.0,0.15183623]
[1673223763283,2.97193117,17133.0,17132.0,0.15183623]
[1673223763580,2.60342472,17133.0,17132.0,0.15183623]
[1673223763800,2.93916125,17133.0,17132.0,0.13665261]
[1673223764522,3.04016956,17133.0,17132.0,0.13665261]
[1673223765032,3.10031098,17133.0,17132.0,0.13665261]
[1673223765306,2.3972242,17133.0,17132.0,0.13665261]
[1673223765565,2.86074159,17133.0,17132.0,0.13665261]
[1673223765818,2.33708278,17133.0,17132.0,0.13665261]
[1673223766101,2.03708278,17133.0,17132.0,0.13665261]
[1673223766818,2.43708278,17133.0,17132.0,0.13665261]
[1673223767096,2.43708278,17133.0,17132.0,0.13165261]
[1673223767351,2.4362002,17133.0,17132.0,0.13165261]
[1673223767599,2.7362002,17133.0,17132.0,0.13165261]
[1673223769362,3.3198682,17133.0,17132.0,0.13165261]
[1673223770639,3.379973,17133.0,17132.0,0.13165261]
[1673223771154,3.3198682,17133.0,17132.0,0.13165261]
[1673223771909,3.3283682,17133.0,17132.0,0.13165261]
[1673223772165,3.3283682,17133.0,17132.0,0.12665261]
[1673223772422,3.3283682,17133.0,17132.0,0.11348735]
[1673223772671,3.4419682,17133.0,17132.0,0.11348735]
[1673223773194,0.11348,17132.0,17131.0,0.00922344]
[1673223773451,0.40366143,17131.0,17130.0,0.09]
[1673223773704,2.55308716,17131.0,17130.0,0.09]
[1673223773973,2.39303543,17131.0,17130.0,0.09]
[1673223774231,3.46800261,17131.0,17130.0,0.09]
[1673223775061,3.60200261,17131.0,17130.0,0.09]
[1673223775770,4.34983535,17131.0,17130.0,0.09]
[1673223777017,4.34972675,17131.0,17130.0,0.09]
[1673223778826,4.34972675,17131.0,17124.0,1.02728852]
[1673223778827,0.4,17130.0,17124.0,0.38826521]
[1673223779069,3.00689142,17129.0,17124.0,0.99668286]
[1673223779310,1.23984258,17128.0,17124.0,0.99668286]
[1673223779565,2.63694276,17127.0,17124.0,0.99653286]
[1673223779814,0.4,17126.0,17124.0,0.60841765]
[1673223780070,1.167882,17125.0,17124.0,0.60841765]
[1673223780589,1.167882,17125.0,17123.0,0.4]
[1673223780847,1.167882,17125.0,17124.0,0.6277219]
[1673223781606,1.767823,17125.0,17124.0,0.01334745]
[1673223782125,1.776323,17125.0,17124.0,0.01334745]
[1673223782624,2.6532798,17125.0,17124.0,0.01334745]
[1673223783125,1.183882,17125.0,17124.0,0.85390892]
[1673223783379,0.016,17125.0,17124.0,0.61306103]
[1673223783893,0.20134,17125.0,17124.0,0.61306103]
[1673223784178,0.20123091,17125.0,17124.0,0.61306103]
[1673223784907,0.01589091,17125.0,17124.0,0.61306103]
[1673223785163,0.05556464,17125.0,17124.0,0.61306103]
[1673223785698,0.05556464,17125.0,17124.0,0.84006103]
[1673223785959,0.05556464,17125.0,17124.0,1.20575216]
[1673223786532,0.05556464,17125.0,17124.0,1.20561303]
[1673223786982,0.05556464,17125.0,17124.0,1.20575216]
[1673223787234,0.05556464,17125.0,17124.0,1.20561303]
[1673223789010,0.05556464,17125.0,17124.0,1.20575216]
[1673223789255,0.05556464,17125.0,17124.0,1.20561303]
[1673223789750,0.05556464,17125.0,17124.0,1.78958803]
[1673223790002,0.05556464,17125.0,17124.0,2.61124092]
[1673223790270,0.05556464,17125.0,17124.0,2.89246159]
[1673223790524,0.05556464,17125.0,17124.0,4.00626993]
[1673223791041,0.05556464,17125.0,17124.0,3.58196279]
[1673223791585,1e-08,17125.0,17124.0,4.00455055]
[1673223791796,1e-08,17125.0,17124.0,4.70455055]
[1673223792062,0.04,17127.0,17124.0,4.70455055]
[1673223792312,0.04,17127.0,17126.0,0.3408]
[1673223792568,0.04,17127.0,17126.0,2.88066076]
[1673223792854,0.04,17127.0,17126.0,2.458073]
[1673223793096,0.04,17127.0,17126.0,2.45833434]
[1673223793341,0.044,17127.0,17126.0,2.59733434]
[1673223793592,0.044,17127.0,17126.0,2.52525831]
[1673223793844,0.048,17127.0,17126.0,2.66325831]
[1673223794096,0.04788863,17127.0,17126.0,2.66351965]
[1673223794611,0.04788863,17127.0,17126.0,2.66325831]
[1673223795133,0.03988863,17127.0,17126.0,2.52551965]
[1673223795407,0.04388863,17127.0,17126.0,2.66351965]
[1673223795892,0.04377726,17127.0,17126.0,2.66351965]
[1673223797697,0.04377726,17127.0,17126.0,3.24742665]
[1673223798207,0.04377726,17127.0,17126.0,3.13382665]
[1673223799751,0.04377726,17127.0,17126.0,2.32245831]
[1673223800014,0.04377726,17127.0,17126.0,1.73855131]
[1673223800572,0.04377726,17127.0,17126.0,1.15464431]
[1673223801081,0.04377726,17127.0,17126.0,1.55464431]
[1673223802315,0.04377726,17127.0,17126.0,1.15464431]
[1673223802569,1.94091095,17127.0,17126.0,0.503552]
[1673223802842,2.11584956,17127.0,17126.0,0.138]
[1673223803111,2.91071762,17127.0,17126.0,0.138]
[1673223803371,3.12813333,17127.0,17126.0,0.138]
[1673223804110,3.12813333,17127.0,17124.0,0.5722678]
[1673223804372,1.31360336,17126.0,17124.0,0.5722678]
[1673223804624,0.4368606,17126.0,17125.0,0.365552]
[1673223804888,0.4368606,17126.0,17125.0,1.04916119]
[1673223805130,1.06051386,17127.0,17125.0,1.04916119]
[1673223805387,1.06050089,17127.0,17126.0,0.765552]
[1673223805651,0.79838453,17127.0,17126.0,0.765552]
[1673223805886,0.03977726,17127.0,17126.0,1.46286624]
[1673223806131,0.03966299,17127.0,17126.0,1.57636624]
[1673223806863,0.03954761,17127.0,17126.0,1.57636624]
[1673223807115,0.03954761,17127.0,17126.0,1.59536624]
[1673223808125,0.03954761,17127.0,17126.0,1.59498023]
[1673223808374,0.03954761,17127.0,17126.0,1.59641964]
[1673223808637,0.03954761,17127.0,17126.0,2.87783364]
[1673223808896,0.03943624,17127.0,17126.0,2.87783364]
[1673223809164,0.03943624,17127.0,17126.0,1.71001964]
[1673223809459,0.03943624,17127.0,17126.0,2.29392664]
[1673223809919,0.03943624,17127.0,17126.0,1.88348723]
[1673223810187,0.21417835,17127.0,17126.0,1.87348723]
[1673223810455,0.21717835,17127.0,17126.0,1.42858023]
[1673223810734,0.21717835,17127.0,17126.0,1.28958023]
[1673223810735,0.21417835,17127.0,17126.0,1.28958023]
[1673223811012,0.04232383,17127.0,17126.0,1.42958023]
[1673223811260,0.04232383,17127.0,17126.0,2.01348723]
[1673223811511,0.04232383,17127.0,17126.0,2.01248723]
[1673223812041,0.03921208,17127.0,17126.0,1.87348723]
[1673223812293,0.04221208,17127.0,17126.0,2.01392591]
[1673223813049,0.03909964,17127.0,17126.0,1.76042591]
[1673223813361,0.04209964,17127.0,17126.0,1.89942591]
[1673223813860,0.04209964,17127.0,17126.0,1.90042591]
[1673223814106,0.04209964,17127.0,17126.0,1.76042591]
[1673223814350,0.04509964,17127.0,17126.0,1.89942591]
[1673223814620,0.04209964,17127.0,17126.0,1.89942591]
[1673223814857,0.04509964,17127.0,17126.0,2.03942591]
[1673223815870,0.03909964,17127.0,17126.0,2.34433291]
[1673223816638,0.03909964,17127.0,17126.0,2.59743291]
[1673223816884,0.04209964,17127.0,17126.0,2.59743291]
[1673223817386,0.03909964,17127.0,17126.0,2.45743291]
[1673223817896,0.04209964,17127.0,17126.0,2.59643291]
[1673223818151,0.04184368,17127.0,17126.0,3.18033991]
[1673223818718,0.00122368,17127.0,17126.0,3.18033991]
[1673223818926,0.1747415,17129.0,17126.0,3.04133991]
[1673223819181,0.1747415,17129.0,17128.0,0.1133]
[1673223819453,0.1747415,17129.0,17128.0,0.47920138]
[1673223819742,0.48479142,17131.0,17128.0,2.45761838]
[1673223820020,0.48479142,17131.0,17130.0,0.2272]
[1673223820268,1.53612597,17131.0,17130.0,0.592752]
[1673223820781,1.53612597,17131.0,17130.0,0.365552]
[1673223821051,1.53812597,17131.0,17130.0,0.365552]
[1673223821308,1.53812597,17131.0,17130.0,0.765552]
[1673223821541,0.48678966,17131.0,17130.0,0.76605133]
[1673223821788,0.22264476,17131.0,17130.0,0.76605133]
[1673223822037,0.48449691,17131.0,17130.0,0.82405133]
[1673223822338,0.48449691,17131.0,17130.0,0.76605133]
[1673223822596,0.48449691,17131.0,17130.0,1.2749828]
[1673223822823,0.48449691,17131.0,17130.0,1.8587538]
[1673223823082,1.36076514,17131.0,17130.0,1.85906142]
[1673223823331,1.36076514,17131.0,17130.0,1.85825447]
[1673223823589,1.36076514,17131.0,17130.0,1.99025447]
[1673223823862,0.48398497,17131.0,17130.0,1.85825447]
[1673223824108,0.48398497,17131.0,17130.0,1.91706142]
[1673223824354,0.15588278,17131.0,17130.0,1.91706142]
[1673223824909,0.1556268,17131.0,17130.0,1.91706142]
[1673223825100,0.41773491,17131.0,17130.0,1.85825447]
[1673223825599,1.48819023,17131.0,17130.0,0.93248347]
[1673223825847,1.48793427,17131.0,17130.0,0.56693147]
[1673223827119,1.48767829,17131.0,17130.0,0.56693147]
[1673223827366,2.34155672,17131.0,17130.0,0.56693147]
[1673223827608,2.76071488,17131.0,17130.0,0.56693147]
[1673223828117,2.90730108,17131.0,17130.0,0.56693147]
[1673223828364,3.43152859,17131.0,17130.0,0.058]
[1673223828609,2.90730108,17131.0,17130.0,0.058]
[1673223829095,2.50704512,17131.0,17130.0,0.058]
[1673223829346,2.08788696,17131.0,17130.0,0.058]
[1673223829601,3.10879597,17131.0,17130.0,0.058]
[1673223829860,3.45852667,17131.0,17130.0,0.058]
[1673223830136,3.45827135,17131.0,17130.0,0.058]
[1673223830368,3.03322325,17131.0,17130.0,0.058]
[1673223830639,2.79921725,17131.0,17130.0,0.058]
[1673223830896,2.79896127,17131.0,17130.0,0.058]
[1673223831704,2.79896127,17131.0,17130.0,0.65534182]
[1673223831949,2.79870595,17131.0,17130.0,0.65534182]
[1673223832962,2.79844999,17131.0,17130.0,0.65578958]
[1673223833207,2.21471299,17131.0,17130.0,0.65534182]
[1673223833710,1.42780998,17131.0,17130.0,0.65534182]
[1673223833997,2.01129168,17131.0,17130.0,0.65534182]
[1673223834986,2.0110358,17131.0,17130.0,0.65534182]
[1673223835733,3.54567954,17131.0,17130.0,0.058]
[1673223835992,3.54542363,17131.0,17130.0,0.058]
[1673223837011,3.54516775,17131.0,17130.0,0.058]
[1673223837805,3.74680673,17131.0,17130.0,0.058]
[1673223838040,3.63555924,17131.0,17130.0,0.058]
[1673223838295,4.22566842,17131.0,17130.0,0.058]
[1673223838542,3.83826441,17131.0,17130.0,0.058]
[1673223838828,4.22581523,17131.0,17130.0,0.058]
[1673223840331,3.8736811,17131.0,17126.0,0.67907217]
[1673223840567,0.34975076,17127.0,17126.0,0.67907217]
[1673223840816,1.95468481,17127.0,17126.0,0.67907217]
[1673223841062,2.00151711,17127.0,17126.0,0.67907217]
[1673223841566,1.95468481,17127.0,17126.0,0.73807217]
[1673223841820,1.77385104,17127.0,17126.0,0.67907217]
[1673223842066,2.12358169,17127.0,17126.0,0.73807217]
[1673223842327,1.78827015,17127.0,17126.0,0.67907217]
[1673223843110,1.78816013,17127.0,17126.0,0.67907217]
[1673223843362,1.78816013,17127.0,17126.0,0.73807217]
[1673223843606,2.40987468,17127.0,17126.0,0.73807217]
[1673223844371,2.06014403,17127.0,17126.0,0.73807217]
[1673223846152,1.66014403,17127.0,17126.0,0.73807217]
[1673223846669,2.07795919,17127.0,17126.0,0.73807217]
[1673223847414,2.66183219,17127.0,17126.0,0.059]
[1673223848687,1.80682898,17127.0,17126.0,0.059]
[1673223848948,1.96288713,17127.0,17126.0,0.61910979]
[1673223849209,1.77953614,17127.0,17126.0,0.61856228]
[1673223849450,1.02082447,17127.0,17126.0,0.61856228]
[1673223849699,0.75858425,17127.0,17126.0,0.61856228]
[1673223850469,0.17482127,17127.0,17126.0,0.61964478]
[1673223850715,0.43702214,17128.0,17126.0,0.98519678]
[1673223850969,0.17482127,17128.0,17127.0,0.365552]
[1673223851216,0.17482127,17128.0,17127.0,0.765552]
[1673223851509,0.43700855,17129.0,17127.0,1.349425]
[1673223851715,0.43715855,17129.0,17128.0,0.365552]
[1673223852475,0.003,17128.0,17127.0,0.983873]
[1673223852767,0.43698403,17128.0,17126.0,1.14343728]
[1673223853023,0.43698403,17128.0,17127.0,0.96218896]
[1673223853529,0.43998403,17128.0,17127.0,0.96218896]
[1673223853797,0.43698403,17128.0,17127.0,0.96218896]
[1673223854063,0.43998403,17128.0,17127.0,0.96218896]
[1673223854323,0.43698403,17128.0,17127.0,0.96218896]
[1673223854583,0.17479675,17128.0,17127.0,0.96218896]
[1673223855100,0.17779675,17128.0,17127.0,0.96218896]
[1673223855646,0.44000627,17128.0,17127.0,0.96218896]
[1673223856157,0.44000627,17128.0,17127.0,0.962255]
[1673223856398,0.44000627,17128.0,17127.0,0.96218896]